[Event "Championnat d'Europe de Blitz"]
[Date "2024.12.09"]
[White "Aizenberg, Benny"]
[Black "Van Foreest, Lucas"]
[WhiteElo "2425"]
[BlackElo "2520"]
[Round "10.23"]
[Result "1/2-1/2"]
[TimeControl "180+2"]

1. e4 {[%emt 00:01:03] [%clk 00:03:03]} e5 {[%clk 00:03:04]} 2. Nf3 {[%emt
00:00:01] [%clk 00:03:04]} Nc6 {[%clk 00:03:05]} 3. Bb5 {[%emt 00:00:01] [%clk
00:03:05]} Nf6 {[%clk 00:03:06]} 4. O-O {[%emt 00:00:05] [%clk 00:03:02]} Nxe4
{[%emt 00:00:02] [%clk 00:03:06]} 5. d4 {[%emt 00:00:02] [%clk 00:03:02]} Nd6
{[%emt 00:00:01] [%clk 00:03:07]} 6. Bxc6 {[%emt 00:00:02] [%clk 00:03:02]} dxc6
{[%emt 00:00:01] [%clk 00:03:08]} 7. dxe5 {[%emt 00:00:01] [%clk 00:03:03]} Nf5
{[%clk 00:03:09]} 8. Qxd8+ {[%emt 00:00:01] [%clk 00:03:04]} Kxd8 {[%clk
00:03:10]} 9. h3 {[%emt 00:00:02] [%clk 00:03:05]} Be7 {[%clk 00:03:11]} 10. Nc3
{[%emt 00:00:04] [%clk 00:03:04]} Nh4 {[%clk 00:03:12]} 11. Nxh4 {[%emt
00:00:06] [%clk 00:03:00]} Bxh4 {[%emt 00:00:01] [%clk 00:03:13]} 12. Be3 {[%emt
00:00:02] [%clk 00:03:00]} h5 {[%emt 00:00:02] [%clk 00:03:13]} 13. Rad1+ {[%emt
00:00:02] [%clk 00:03:00]} Ke8 {[%emt 00:00:01] [%clk 00:03:15]} 14. g3 {[%emt
00:00:09] [%clk 00:02:53]} Be7 {[%emt 00:00:01] [%clk 00:03:15]} 15. Kg2 {[%emt
00:00:02] [%clk 00:02:54]} Bf5 {[%emt 00:00:02] [%clk 00:03:15]} 16. Rd2 {[%emt
00:00:01] [%clk 00:02:55]} Bb4 {[%emt 00:00:17] [%clk 00:02:59]} 17. a3 {[%emt
00:00:07] [%clk 00:02:50]} Bxc3 {[%emt 00:00:02] [%clk 00:03:00]} 18. bxc3
{[%emt 00:00:01] [%clk 00:02:51]} Rd8 {[%emt 00:00:05] [%clk 00:02:57]} 19. Rfd1
{[%emt 00:00:09] [%clk 00:02:44]} Rxd2 {[%emt 00:00:02] [%clk 00:02:56]} 20.
Rxd2 {[%emt 00:00:02] [%clk 00:02:45]} Ke7 {[%emt 00:00:17] [%clk 00:02:41]} 21.
f3 {[%emt 00:00:22] [%clk 00:02:24]} b6 {[%emt 00:00:12] [%clk 00:02:32]} 22. g4
{[%emt 00:00:10] [%clk 00:02:17]} hxg4 {[%emt 00:00:03] [%clk 00:02:30]} 23.
hxg4 {[%emt 00:00:02] [%clk 00:02:17]} Bg6 {[%emt 00:00:02] [%clk 00:02:30]} 24.
c4 {[%emt 00:00:36] [%clk 00:01:43]} c5 {[%emt 00:00:06] [%clk 00:02:26]} 25. f4
{[%emt 00:00:14] [%clk 00:01:31]} Be4+ {[%emt 00:00:01] [%clk 00:02:27]} 26. Kg3
{[%clk 00:01:32]} g6 {[%clk 00:02:28]} 27. Bg1 {[%emt 00:00:41] [%clk 00:00:54]}
Ke6 {[%emt 00:00:10] [%clk 00:02:20]} 28. c3 {[%emt 00:00:07] [%clk 00:00:49]}
Rh1 {[%emt 00:00:03] [%clk 00:02:18]} 29. Rd1 {[%emt 00:00:09] [%clk 00:00:43]}
Bc2 {[%emt 00:00:01] [%clk 00:02:18]} 30. Re1 {[%emt 00:00:13] [%clk 00:00:33]}
Bd3 {[%emt 00:00:03] [%clk 00:02:16]} 31. Kg2 {[%emt 00:00:05] [%clk 00:00:31]}
Rh8 {[%emt 00:00:02] [%clk 00:02:16]} 32. Kg3 {[%emt 00:00:09] [%clk 00:00:23]}
Bxc4 {[%emt 00:00:04] [%clk 00:02:15]} 33. Rd1 {[%emt 00:00:01] [%clk 00:00:24]}
Rh1 {[%emt 00:00:08] [%clk 00:02:09]} 34. Kg2 {[%emt 00:00:02] [%clk 00:00:24]}
Bd5+ {[%emt 00:00:04] [%clk 00:02:08]} 35. Kg3 {[%emt 00:00:01] [%clk 00:00:24]}
a5 {[%emt 00:00:10] [%clk 00:01:59]} 36. Re1 {[%emt 00:00:05] [%clk 00:00:21]}
a4 {[%emt 00:00:16] [%clk 00:01:45]} 37. Rf1 {[%emt 00:00:08] [%clk 00:00:15]}
b5 {[%emt 00:00:11] [%clk 00:01:37]} 38. Ra1 {[%emt 00:00:12] [%clk 00:00:05]}
c6 {[%emt 00:00:25] [%clk 00:01:14]} 39. Rb1 {[%emt 00:00:03] [%clk 00:00:04]}
b4 {[%emt 00:00:03] [%clk 00:01:13]} 40. cxb4 {[%emt 00:00:02] [%clk 00:00:04]}
cxb4 {[%clk 00:01:14]} 41. axb4 {[%emt 00:00:02] [%clk 00:00:04]} a3 {[%emt
00:00:01] [%clk 00:01:16]} 42. Ra1 {[%emt 00:00:01] [%clk 00:00:05]} a2 {[%emt
00:00:01] [%clk 00:01:17]} 43. Bd4 {[%emt 00:00:02] [%clk 00:00:06]} Rh8 {[%emt
00:00:38] [%clk 00:00:39]} 44. Rf1 {[%emt 00:00:03] [%clk 00:00:06]} Ra8 {[%emt
00:00:02] [%clk 00:00:39]} 45. f5+ {[%emt 00:00:02] [%clk 00:00:06]} gxf5 {[%emt
00:00:01] [%clk 00:00:39]} 46. gxf5+ {[%emt 00:00:02] [%clk 00:00:07]} Kd7
{[%clk 00:00:40]} 47. Kf4 {[%emt 00:00:04] [%clk 00:00:06]} Ra4 {[%emt 00:00:02]
[%clk 00:00:40]} 48. Bc3 {[%emt 00:00:04] [%clk 00:00:03]} c5 {[%emt 00:00:01]
[%clk 00:00:41]} 49. Rd1 {[%emt 00:00:02] [%clk 00:00:04]} Kc6 {[%emt 00:00:04]
[%clk 00:00:39]} 50. Ba1 {[%emt 00:00:02] [%clk 00:00:04]} Rxb4+ {[%emt
00:00:03] [%clk 00:00:37]} 51. Ke3 {[%emt 00:00:01] [%clk 00:00:05]} Rb1 {[%emt
00:00:09] [%clk 00:00:31]} 52. Kd2 {[%emt 00:00:01] [%clk 00:00:06]} Kb5 {[%emt
00:00:05] [%clk 00:00:28]} 53. Rc1 {[%emt 00:00:01] [%clk 00:00:06]} Rb3 {[%emt
00:00:07] [%clk 00:00:23]} 54. Re1 {[%emt 00:00:02] [%clk 00:00:06]} Rb1 {[%emt
00:00:09] [%clk 00:00:16]} 55. Rc1 {[%emt 00:00:03] [%clk 00:00:05]} Kb4 {[%clk
00:00:18]} 56. Bc3+ {[%emt 00:00:02] [%clk 00:00:05]} Kb3 {[%clk 00:00:19]} 57.
Ba1 {[%emt 00:00:01] [%clk 00:00:06]} c4 {[%clk 00:00:21]} 58. Rc3+ {[%emt
00:00:03] [%clk 00:00:05]} Kb4 {[%clk 00:00:22]} 59. Rc1 {[%emt 00:00:01] [%clk
00:00:06]} Rxc1 {[%emt 00:00:01] [%clk 00:00:23]} 60. Kxc1 {[%emt 00:00:01]
[%clk 00:00:07]} c3 {[%emt 00:00:02] [%clk 00:00:23]} 61. f6 {[%emt 00:00:04]
[%clk 00:00:05]} Kb3 {[%emt 00:00:01] [%clk 00:00:24]} 62. Kd1 {[%emt 00:00:02]
[%clk 00:00:05]} Be6 {[%emt 00:00:01] [%clk 00:00:25]} 63. Kc1 {[%clk 00:00:06]}
Bg4 {[%clk 00:00:27]} 64. e6 {[%emt 00:00:05] [%clk 00:00:04]} Bxe6 {[%emt
00:00:01] [%clk 00:00:27]} 65. Kd1 {[%clk 00:00:05]} Bf5 {[%clk 00:00:29]} 66.
Kc1 {[%emt 00:00:02] [%clk 00:00:06]} Bg6 {[%emt 00:00:01] [%clk 00:00:29]} 67.
Kd1 {[%emt 00:00:01] [%clk 00:00:07]} Kc4 {[%emt 00:00:03] [%clk 00:00:29]} 68.
Kc1 {[%emt 00:00:01] [%clk 00:00:07]} Kd3 {[%clk 00:00:30]} 69. Kd1 {[%emt
00:00:01] [%clk 00:00:08]} Bf5 {[%emt 00:00:01] [%clk 00:00:31]} 70. Kc1 {[%emt
00:00:01] [%clk 00:00:08]} Be6 {[%emt 00:00:03] [%clk 00:00:31]} 71. Kd1 {[%emt
00:00:02] [%clk 00:00:08]} Bd5 {[%emt 00:00:14] [%clk 00:00:19]} 72. Kc1 {[%clk
00:00:09]} Be4 {[%clk 00:00:21]} 73. Kd1 {[%emt 00:00:01] [%clk 00:00:10]} Kd4
{[%emt 00:00:01] [%clk 00:00:22]} 74. Kc1 {[%emt 00:00:01] [%clk 00:00:11]} Bc6
{[%emt 00:00:09] [%clk 00:00:15]} 75. Kc2 {[%emt 00:00:01] [%clk 00:00:11]} Ba4+
{[%emt 00:00:01] [%clk 00:00:16]} 76. Kc1 {[%clk 00:00:13]} Bd7 {[%emt 00:00:06]
[%clk 00:00:12]} 77. Kc2 {[%emt 00:00:01] [%clk 00:00:13]} Bf5+ {[%clk
00:00:13]} 78. Kc1 {[%emt 00:00:07] [%clk 00:00:08]} Kd3 {[%clk 00:00:15]} 79.
Kd1 {[%emt 00:00:01] [%clk 00:00:10]} Bg6 {[%emt 00:00:04] [%clk 00:00:12]} 80.
Kc1 {[%clk 00:00:11]} c2 {[%emt 00:00:07] [%clk 00:00:07]} 81. Bb2 {[%clk
00:00:12]} Kc4 {[%emt 00:00:02] [%clk 00:00:07]} 82. Ba1 {[%emt 00:00:01] [%clk
00:00:13]} Kb3 {[%emt 00:00:04] [%clk 00:00:04]} 83. Bb2 {[%clk 00:00:15]} Bh7
{[%emt 00:00:01] [%clk 00:00:06]} 84. Ba1 {[%clk 00:00:16]} Bf5 {[%clk
00:00:08]} 85. Bb2 {[%emt 00:00:01] [%clk 00:00:17]} Be6 {[%clk 00:00:09]} 86.
Ba1 {[%clk 00:00:18]} Bd7 {[%clk 00:00:11]} 87. Kd2 {[%emt 00:00:01] [%clk
00:00:19]} Bc8 {[%clk 00:00:12]} 88. Kc1 {[%clk 00:00:20]} Bb7 {[%clk 00:00:14]}
89. Kd2 {[%emt 00:00:01] [%clk 00:00:21]} Ba8 {[%clk 00:00:16]} 90. Kc1 {[%emt
00:00:01] [%clk 00:00:22]} Bb7 {[%clk 00:00:17]} 91. Bb2 {[%emt 00:00:01] [%clk
00:00:24]} Ba6 {[%emt 00:00:02] [%clk 00:00:21]} 92. Ba1 {[%clk 00:00:26]} Bd3
{[%emt 00:00:02] [%clk 00:00:24]} 93. Bb2 {[%clk 00:00:28]} Be2 {[%clk
00:00:26]} 94. Ba1 {[%clk 00:00:29]} Bf1 {[%clk 00:00:27]} 95. Bb2 {[%emt
00:00:02] [%clk 00:00:30]} Bg2 {[%clk 00:00:29]} 96. Ba1 {[%emt 00:00:02] [%clk
00:00:30]} Bh3 {[%clk 00:00:30]} 97. Bb2 {[%clk 00:00:32]} Bg4 {[%clk 00:00:32]}
98. Ba1 {[%clk 00:00:33]} Bh5 {[%emt 00:00:01] [%clk 00:00:33]} 99. Bb2 {[%emt
00:00:01] [%clk 00:00:34]} Bg6 {[%clk 00:00:34]} 100. Ba1 {[%clk 00:00:35]} Bh7
{[%clk 00:00:36]} 101. Bb2 {[%emt 00:00:02] [%clk 00:00:36]} Bd3 {[%emt
00:00:12] [%clk 00:00:25]} 102. Ba1 {[%emt 00:00:01] [%clk 00:00:36]} Bc4 {[%emt
00:00:08] [%clk 00:00:20]} 103. Bb2 {[%emt 00:00:01] [%clk 00:00:37]} Bb5 {[%clk
00:00:21]} 104. Ba1 {[%emt 00:00:01] [%clk 00:00:38]} Ba6 {[%clk 00:00:23]} 105.
Bb2 {[%emt 00:00:01] [%clk 00:00:39]} Bb7 {[%clk 00:00:25]} 106. Ba1 {[%clk
00:00:40]} Ba8 {[%clk 00:00:26]} 107. Bb2 {[%emt 00:00:01] [%clk 00:00:41]} Bb7
{[%clk 00:00:28]} 108. Ba1 {[%emt 00:00:01] [%clk 00:00:43]} Bc8 {[%clk
00:00:29]} 109. Bb2 {[%emt 00:00:01] [%clk 00:00:44]} Bd7 {[%clk 00:00:31]} 110.
Ba1 {[%emt 00:00:02] [%clk 00:00:44]} Be8 {[%clk 00:00:33]} 111. Bb2 {[%emt
00:00:02] [%clk 00:00:45]} Bc6 {[%emt 00:00:01] [%clk 00:00:34]} 112. Ba1 {[%emt
00:00:01] [%clk 00:00:46]} Bd5 {[%clk 00:00:35]} 113. Bb2 {[%emt 00:00:01] [%clk
00:00:46]} Be6 {[%clk 00:00:37]} 114. Ba1 {[%clk 00:00:48]} Bf5 {[%clk
00:00:38]} 115. Bb2 {[%emt 00:00:01] [%clk 00:00:49]} Kc4 {[%emt 00:00:05] [%clk
00:00:35]} 116. Ba1 {[%emt 00:00:01] [%clk 00:00:50]} Kd3 {[%clk 00:00:36]} 117.
Bb2 {[%clk 00:00:51]} Bg6 {[%emt 00:00:02] [%clk 00:00:36]} 118. Ba1 {[%emt
00:00:01] [%clk 00:00:52]} Bh7 {[%clk 00:00:37]} 119. Bb2 {[%clk 00:00:54]} Bg8
{[%emt 00:00:01] [%clk 00:00:37]} 120. Bc3 {[%emt 00:00:05] [%clk 00:00:52]} Bh7
{[%emt 00:00:11] [%clk 00:00:28]} 121. Ba1 {[%emt 00:00:01] [%clk 00:00:53]} Ke2
{[%emt 00:00:07] [%clk 00:00:23]} 122. Bb2 {[%emt 00:00:02] [%clk 00:00:53]} Ke1
{[%clk 00:00:23]} 123. Ba1 {[%emt 00:00:03] [%clk 00:00:54]} Kf1 {[%clk
00:00:24]} 124. Bb2 {[%emt 00:00:01] [%clk 00:00:54]} a1=B {[%emt 00:00:04]}
125. Bc3 {[%emt 00:00:08] [%clk 00:00:46]} Bb2+ {[%emt 00:00:11] [%clk
00:00:15]} 126. Bxb2 {[%emt 00:00:03] [%clk 00:00:45]} Kg1 {[%emt 00:00:01]
[%clk 00:00:17]} 127. Bc3 {[%emt 00:00:01] [%clk 00:00:46]} Kh1 {[%clk
00:00:18]} 128. Bb2 {[%clk 00:00:47]} Kh2 {[%clk 00:00:20]} 129. Ba1 {[%emt
00:00:03] [%clk 00:00:47]} Kh3 {[%clk 00:00:21]} 130. Bc3 {[%clk 00:00:47]} Bg6
{[%clk 00:00:23]} 131. Bb2 {[%emt 00:00:02] [%clk 00:00:49]} Kh4 {[%clk
00:00:24]} 132. Ba1 {[%clk 00:00:50]} Kh5 {[%clk 00:00:26]} 133. Bb2 {[%clk
00:00:52]} Kh6 {[%clk 00:00:27]} 134. Ba1 {[%emt 00:00:01] [%clk 00:00:53]} Kh7
{[%emt 00:00:11] [%clk 00:00:18]} 135. Bb2 {[%clk 00:00:54]} Kh8 {[%clk
00:00:19]} 136. Ba1 {[%emt 00:00:01] [%clk 00:00:55]} Kg8 {[%emt 00:00:01] [%clk
00:00:20]} 137. Bb2 {[%emt 00:00:01] [%clk 00:00:57]} Kf8 {[%clk 00:00:21]} 138.
Ba1 {[%emt 00:00:01] [%clk 00:00:57]} Ke8 {[%clk 00:00:23]} 139. Bb2 {[%emt
00:00:01] [%clk 00:00:59]} Kd8 {[%clk 00:00:24]} 140. Ba1 {[%clk 00:01:00]} Kc8
{[%clk 00:00:25]} 141. Bb2 {[%clk 00:01:01]} Kb8 {[%clk 00:00:27]} 142. Ba1
{[%emt 00:00:01] [%clk 00:01:02]} Ka8 {[%clk 00:00:29]} 143. Bb2 {[%emt
00:00:01] [%clk 00:01:04]} Ka7 {[%clk 00:00:30]} 144. Ba1 {[%clk 00:01:05]} Ka6
{[%clk 00:00:32]} 145. Bb2 {[%clk 00:01:07]} Ka5 {[%clk 00:00:34]} 146. Ba1
{[%clk 00:01:08]} Ka4 {[%clk 00:00:35]} 147. Bb2 {[%clk 00:01:09]} Kb3 {[%clk
00:00:37]} 148. Ba1 {[%clk 00:01:10]} Kc4 {[%emt 00:00:02] [%clk 00:00:38]} 149.
Bb2 {[%clk 00:01:12]} Kd3 {[%clk 00:00:39]} 150. Ba1 {[%emt 00:00:02] [%clk
00:01:12]} Ke4 {[%emt 00:00:02] [%clk 00:00:39]} 151. Kxc2 {[%emt 00:00:01]
[%clk 00:01:12]} Kd5+ {[%clk 00:00:40]} 152. Kd2 {[%emt 00:00:01] [%clk
00:01:13]} 1/2-1/2

[Site "Europe Echecs"]

[Event "Championnat d'Europe de Blitz"]
[Date "2024.12.09"]
[White "Fridman, Daniel"]
[Black "Diermair, Andreas"]
[WhiteElo "2571"]
[BlackElo "2433"]
[Round "10.24"]
[Result "1-0"]
[TimeControl "180+2"]

1. d4 {[%emt 00:17:30] [%clk 00:03:03]} Nf6 {[%clk 00:03:03]} 2. Nf3 {[%clk
00:03:04]} d5 {[%emt 00:00:07] [%clk 00:02:58]} 3. c4 {[%emt 00:00:02] [%clk
00:03:04]} e6 {[%emt 00:00:02] [%clk 00:02:58]} 4. g3 {[%clk 00:03:05]} Bb4+
{[%emt 00:00:02] [%clk 00:02:58]} 5. Nc3 {[%emt 00:00:01] [%clk 00:03:06]} O-O
{[%emt 00:00:07] [%clk 00:02:53]} 6. Bg2 {[%emt 00:00:01] [%clk 00:03:07]} dxc4
{[%emt 00:00:17] [%clk 00:02:38]} 7. O-O {[%emt 00:00:02] [%clk 00:03:07]} Nc6
{[%emt 00:00:01] [%clk 00:02:39]} 8. Qa4 {[%emt 00:00:02] [%clk 00:03:08]} a5
{[%emt 00:00:14] [%clk 00:02:26]} 9. Rd1 {[%emt 00:00:05] [%clk 00:03:05]} Bd7
{[%emt 00:00:27] [%clk 00:02:01]} 10. Qc2 {[%emt 00:00:04] [%clk 00:03:03]} Rb8
{[%emt 00:00:12] [%clk 00:01:51]} 11. Ne5 {[%emt 00:00:06] [%clk 00:02:58]} Qe7
{[%emt 00:00:25] [%clk 00:01:28]} 12. Nxc4 {[%emt 00:00:08] [%clk 00:02:53]}
Rfd8 {[%emt 00:00:18] [%clk 00:01:12]} 13. Bf4 {[%emt 00:00:32] [%clk 00:02:22]}
Be8 {[%emt 00:00:07] [%clk 00:01:08]} 14. Nb5 {[%emt 00:00:28] [%clk 00:01:56]}
Nd5 {[%emt 00:00:15] [%clk 00:00:55]} 15. Bc1 {[%emt 00:00:01] [%clk 00:01:56]}
Bd6 {[%emt 00:00:25] [%clk 00:00:33]} 16. Ncxd6 {[%emt 00:00:18] [%clk
00:01:40]} cxd6 {[%emt 00:00:02] [%clk 00:00:33]} 17. e4 {[%emt 00:00:02] [%clk
00:01:40]} Ncb4 {[%emt 00:00:12] [%clk 00:00:23]} 18. Qe2 {[%emt 00:00:01] [%clk
00:01:41]} Nf6 {[%emt 00:00:09] [%clk 00:00:16]} 19. a3 {[%emt 00:00:05] [%clk
00:01:38]} Bxb5 {[%emt 00:00:05] [%clk 00:00:13]} 20. Qxb5 {[%emt 00:00:01]
[%clk 00:01:38]} Nc2 {[%emt 00:00:05] [%clk 00:00:10]} 21. Rb1 {[%emt 00:00:16]
[%clk 00:01:25]} e5 {[%clk 00:00:11]} 22. d5 {[%emt 00:00:13] [%clk 00:01:14]}
Qc7 {[%emt 00:00:03] [%clk 00:00:11]} 23. Bg5 {[%emt 00:00:09] [%clk 00:01:06]}
Nd4 {[%emt 00:00:02] [%clk 00:00:12]} 24. Qd3 {[%emt 00:00:01] [%clk 00:01:06]}
Qe7 {[%emt 00:00:03] [%clk 00:00:11]} 25. Be3 {[%emt 00:00:02] [%clk 00:01:06]}
Rbc8 {[%emt 00:00:08] [%clk 00:00:06]} 26. Rbc1 {[%emt 00:00:01] [%clk
00:01:07]} h6 {[%emt 00:00:01] [%clk 00:00:06]} 27. Bh3 {[%emt 00:00:03] [%clk
00:01:06]} Rc7 {[%emt 00:00:02] [%clk 00:00:05]} 28. Rxc7 {[%emt 00:00:12] [%clk
00:00:56]} Qxc7 {[%emt 00:00:01] [%clk 00:00:07]} 29. Bxd4 {[%emt 00:00:06]
[%clk 00:00:52]} exd4 {[%emt 00:00:01] [%clk 00:00:08]} 30. Qxd4 {[%emt
00:00:02] [%clk 00:00:53]} Re8 {[%clk 00:00:09]} 31. f3 {[%emt 00:00:04] [%clk
00:00:51]} Qc2 {[%emt 00:00:01] [%clk 00:00:10]} 32. Qd2 {[%emt 00:00:21] [%clk
00:00:32]} Qc5+ {[%emt 00:00:01] [%clk 00:00:11]} 33. Qf2 {[%emt 00:00:01] [%clk
00:00:32]} Qc4 {[%emt 00:00:04] [%clk 00:00:10]} 34. Qd2 {[%emt 00:00:08] [%clk
00:00:26]} Qc5+ {[%emt 00:00:02] [%clk 00:00:10]} 35. Kh1 {[%emt 00:00:02] [%clk
00:00:26]} a4 {[%emt 00:00:02] [%clk 00:00:10]} 36. Rc1 {[%emt 00:00:03] [%clk
00:00:26]} Qb5 {[%emt 00:00:01] [%clk 00:00:10]} 37. Bf1 {[%emt 00:00:02] [%clk
00:00:26]} Qb6 {[%emt 00:00:02] [%clk 00:00:10]} 38. Kg2 {[%emt 00:00:01] [%clk
00:00:27]} h5 {[%emt 00:00:04] [%clk 00:00:08]} 39. h4 {[%emt 00:00:02] [%clk
00:00:27]} Nd7 {[%emt 00:00:02] [%clk 00:00:08]} 40. Qb4 {[%emt 00:00:06] [%clk
00:00:23]} Qe3 {[%emt 00:00:03] [%clk 00:00:08]} 41. Qc3 {[%emt 00:00:03] [%clk
00:00:22]} Qb6 {[%emt 00:00:04] [%clk 00:00:06]} 42. Rc2 {[%emt 00:00:05] [%clk
00:00:19]} Ne5 {[%clk 00:00:08]} 43. Be2 {[%emt 00:00:06] [%clk 00:00:16]} g6
{[%emt 00:00:04] [%clk 00:00:05]} 44. Qb4 {[%emt 00:00:02] [%clk 00:00:16]} Qe3
{[%emt 00:00:04] [%clk 00:00:04]} 45. Qxa4 {[%emt 00:00:02] [%clk 00:00:16]} Rd8
{[%emt 00:00:01] [%clk 00:00:04]} 46. Qa5 {[%emt 00:00:02] [%clk 00:00:16]} Rf8
{[%emt 00:00:02] [%clk 00:00:04]} 47. Qc3 {[%emt 00:00:02] [%clk 00:00:17]} Qb6
{[%emt 00:00:01] [%clk 00:00:04]} 48. b4 {[%emt 00:00:03] [%clk 00:00:16]} Ra8
{[%emt 00:00:01] [%clk 00:00:05]} 49. f4 {[%emt 00:00:02] [%clk 00:00:16]} Nd7
{[%emt 00:00:01] [%clk 00:00:06]} 50. Qc7 {[%emt 00:00:03] [%clk 00:00:15]} Qd4
{[%emt 00:00:03] [%clk 00:00:05]} 51. Bf3 {[%emt 00:00:03] [%clk 00:00:15]} Nf6
{[%emt 00:00:01] [%clk 00:00:06]} 52. Qc3 {[%emt 00:00:02] [%clk 00:00:15]} 1-0

[Site "Europe Echecs"]

[Event "Championnat d'Europe de Blitz"]
[Date "2024.12.09"]
[White "Danov, Lyubomir"]
[Black "Koelle, Tobias"]
[WhiteElo "2297"]
[BlackElo "2437"]
[Round "10.25"]
[Result "1-0"]
[TimeControl "180+2"]

1. e4 {[%emt 00:00:01] [%clk 00:03:02]} c5 {[%emt 00:00:01] [%clk 00:03:03]} 2.
Nf3 {[%emt 00:00:02] [%clk 00:03:02]} d6 {[%emt 00:00:01] [%clk 00:03:05]} 3. d4
{[%emt 00:00:01] [%clk 00:03:03]} cxd4 {[%clk 00:03:06]} 4. Nxd4 {[%emt
00:00:01] [%clk 00:03:03]} Nf6 {[%emt 00:00:01] [%clk 00:03:07]} 5. Bd3 {[%emt
00:00:02] [%clk 00:03:04]} g6 {[%emt 00:00:11] [%clk 00:02:58]} 6. O-O {[%emt
00:00:07] [%clk 00:02:59]} Bg7 {[%emt 00:00:01] [%clk 00:02:57]} 7. c4 {[%emt
00:00:07] [%clk 00:02:55]} Nc6 {[%emt 00:00:01] [%clk 00:02:58]} 8. Ne2 {[%emt
00:00:10] [%clk 00:02:48]} O-O {[%emt 00:00:03] [%clk 00:02:57]} 9. Nbc3 {[%emt
00:00:02] [%clk 00:02:48]} Nd7 {[%emt 00:00:04] [%clk 00:02:54]} 10. b3 {[%emt
00:00:12] [%clk 00:02:38]} Nc5 {[%clk 00:02:55]} 11. Bb2 {[%emt 00:00:08] [%clk
00:02:32]} Be6 {[%emt 00:00:08] [%clk 00:02:50]} 12. Rc1 {[%emt 00:00:06] [%clk
00:02:27]} a6 {[%emt 00:00:03] [%clk 00:02:50]} 13. Bb1 {[%emt 00:00:05] [%clk
00:02:24]} Rb8 {[%emt 00:00:06] [%clk 00:02:46]} 14. Qd2 {[%emt 00:00:11] [%clk
00:02:14]} b5 {[%emt 00:00:04] [%clk 00:02:45]} 15. cxb5 {[%emt 00:00:29] [%clk
00:01:47]} axb5 {[%clk 00:02:46]} 16. Nd5 {[%emt 00:00:02] [%clk 00:01:47]} Bxb2
{[%emt 00:00:30] [%clk 00:02:19]} 17. Qxb2 {[%emt 00:00:02] [%clk 00:01:46]} Ne5
{[%emt 00:00:11] [%clk 00:02:10]} 18. Qd2 {[%emt 00:00:03] [%clk 00:01:45]} Ra8
{[%emt 00:00:08] [%clk 00:02:05]} 19. Nd4 {[%emt 00:00:05] [%clk 00:01:42]} Bd7
{[%emt 00:00:30] [%clk 00:01:37]} 20. f4 {[%emt 00:00:17] [%clk 00:01:26]} Nc6
{[%emt 00:00:10] [%clk 00:01:30]} 21. Nxb5 {[%emt 00:00:41] [%clk 00:00:47]} Rb8
{[%emt 00:00:23] [%clk 00:01:09]} 22. Nbc3 {[%emt 00:00:14] [%clk 00:00:35]} Be6
{[%emt 00:00:06] [%clk 00:01:05]} 23. f5 {[%emt 00:00:04] [%clk 00:00:32]} Bxd5
{[%emt 00:00:07] [%clk 00:01:01]} 24. Nxd5 {[%clk 00:00:33]} f6 {[%emt 00:00:25]
[%clk 00:00:38]} 25. fxg6 {[%emt 00:00:06] [%clk 00:00:29]} hxg6 {[%clk
00:00:39]} 26. b4 {[%emt 00:00:02] [%clk 00:00:29]} Nxb4 {[%emt 00:00:02] [%clk
00:00:39]} 27. Nxb4 {[%clk 00:00:29]} Qb6 {[%emt 00:00:02] [%clk 00:00:39]} 28.
Nd5 {[%emt 00:00:06] [%clk 00:00:25]} Nxe4+ {[%clk 00:00:40]} 29. Nxb6 {[%emt
00:00:01] [%clk 00:00:26]} Nxd2 {[%clk 00:00:42]} 30. Rfd1 {[%emt 00:00:07]
[%clk 00:00:21]} Rxb6 {[%emt 00:00:06] [%clk 00:00:38]} 31. Rxd2 {[%emt
00:00:01] [%clk 00:00:22]} f5 {[%clk 00:00:39]} 32. a4 {[%emt 00:00:02] [%clk
00:00:21]} Rfb8 {[%clk 00:00:41]} 33. Bd3 {[%clk 00:00:22]} Kg7 {[%emt 00:00:01]
[%clk 00:00:42]} 34. a5 {[%emt 00:00:01] [%clk 00:00:23]} Rb3 {[%clk 00:00:44]}
35. a6 {[%clk 00:00:24]} Ra3 {[%clk 00:00:45]} 36. Bf1 {[%emt 00:00:02] [%clk
00:00:24]} Kf6 {[%emt 00:00:02] [%clk 00:00:46]} 37. Rdd1 {[%emt 00:00:01] [%clk
00:00:24]} Rb2 {[%emt 00:00:03] [%clk 00:00:44]} 38. Ra1 {[%emt 00:00:02] [%clk
00:00:25]} Rba2 {[%clk 00:00:46]} 39. Rxa2 {[%clk 00:00:26]} Rxa2 {[%clk
00:00:47]} 40. Rb1 {[%emt 00:00:03] [%clk 00:00:24]} e5 {[%emt 00:00:01] [%clk
00:00:49]} 41. Rb6 {[%emt 00:00:01] [%clk 00:00:25]} e4 {[%emt 00:00:12] [%clk
00:00:39]} 42. Rxd6+ {[%emt 00:00:02] [%clk 00:00:25]} Ke5 {[%clk 00:00:40]} 43.
Rxg6 {[%emt 00:00:02] [%clk 00:00:25]} e3 {[%clk 00:00:42]} 44. Re6+ {[%emt
00:00:02] [%clk 00:00:24]} Kd4 {[%emt 00:00:06] [%clk 00:00:39]} 45. h4 {[%emt
00:00:01] [%clk 00:00:24]} f4 {[%emt 00:00:02] [%clk 00:00:40]} 46. h5 {[%clk
00:00:25]} Kd5 {[%emt 00:00:08] [%clk 00:00:34]} 47. Re8 {[%emt 00:00:04] [%clk
00:00:22]} Kd6 {[%emt 00:00:15] [%clk 00:00:21]} 48. h6 {[%emt 00:00:02] [%clk
00:00:23]} f3 {[%emt 00:00:10] [%clk 00:00:13]} 49. gxf3 {[%emt 00:00:01] [%clk
00:00:23]} e2 {[%emt 00:00:02] [%clk 00:00:13]} 50. Rxe2 {[%emt 00:00:02] [%clk
00:00:23]} Ra5 {[%emt 00:00:01] [%clk 00:00:14]} 51. h7 {[%emt 00:00:03] [%clk
00:00:23]} Rh5 {[%clk 00:00:15]} 52. Rh2 {[%emt 00:00:01] [%clk 00:00:24]} Rg5+
{[%emt 00:00:02] [%clk 00:00:15]} 53. Bg2 {[%clk 00:00:24]} Re5 {[%emt 00:00:02]
[%clk 00:00:15]} 54. h8=Q {[%emt 00:00:02] [%clk 00:00:24]} 1-0

[Site "Europe Echecs"]